Cogmind - Beta 11.1 @@@ ROGUE MODE // 2022.06.03 @ 16:25:18 Player: Jamuson Result: Destroyed by Y-45 Defender with Beam Rifle Performance ------------- Evolutions (2) 1000 Regions Visited (5) 1000 Robots Destroyed (49) 245 Value Destroyed (1301) 1301 Prototype IDs (27) 540 Alien Tech Used (0) 0 Bonus (325) 325 TOTAL SCORE: 4411 Bonus ------- Follower Combat Kills 25 Aligned with FarCom 300 Cogmind --------- Core Integrity 0/550 Matter 300/300 Energy 100/100 System Corruption 0% Temperature Cool (9) Movement Treading (305) Ox2 Location -8/Materials Parts ------- > --- POWER (1) -------- (None) > --- PROPULSION (3) --- Advanced Treads > --- UTILITY (4) ------ High-capacity Storage Unit > --- WEAPON (3) ------- Flail Flail Flail > --- INVENTORY (20) --- Improved Heat Sink High-capacity Storage Unit High-capacity Matter Pod (200) Improved Sensor Array Hardened Medium Armor Plating Pulse Rifle Grenade Launcher Peak State ------------ > --- POWER ------------ Light Nuclear Core > --- PROPULSION ------- Light Treads Advanced Treads Wheel > --- UTILITY ---------- Melee Analysis Suite Melee Analysis Suite Hardened Medium Armor Plating Hacking Suite > --- WEAPON ----------- Flail Flail Flail > --- INVENTORY -------- Improved Heat Sink High-capacity Matter Pod Hardened Medium Armor Plating Pulse Rifle Grenade Launcher [Rating: 27] Favorites ----------- Power Improved Ion Engine Engine Improved Ion Engine Power Core Light Nuclear Core Propulsion Compact Wheel Treads Light Treads Leg Aluminum Leg Wheel Compact Wheel Flight Unit Flight Unit Utility Large Storage Unit Storage Large Storage Unit Processor Melee Analysis Suite Hackware Hacking Suite Protection Hardened Medium Armor Plating Weapon Shotgun Energy Gun EM Pulse Gun Ballistic Gun Shotgun Launcher Grenade Launcher Impact Weapon Flail Build | -11 -10 -10 -10 -9 -8 ------- Run | Scr Mat Min Exi Min Mat Slots Evolved 4 | . . . . . 4 Power . | . . . . . . Propulsion 1 | . . . . . 1 Utility 2 | . . . . . 2 Weapon 1 | . . . . . 1 Parts Attached 42 | . 4 6 1 2 29 Power 5 | . 1 . . . 4 Engine 4 | . 1 . . . 3 Core 1 | . . . . . 1 Reactor . | . . . . . . Propulsion 10 | . . 2 . . 8 Treads 3 | . . . . . 3 Leg . | . . . . . . Wheel 5 | . . 2 . . 3 Hover . | . . . . . . Flight 2 | . . . . . 2 Utility 9 | . 1 . 1 . 7 Device . | . . . . . . Storage 2 | . 1 . . . 1 Processor 4 | . . . 1 . 3 Hackware 1 | . . . . . 1 Protection 2 | . . . . . 2 Artifact . | . . . . . . Weapon 18 | . 2 4 . 2 10 Energy Gun 2 | . . . . . 2 Energy Cannon . | . . . . . . Ballistic Gun 9 | . 2 3 . 1 3 Ballistic Cannon . | . . . . . . Launcher 4 | . . 1 . 1 2 Special Weapon . | . . . . . . Impact Weapon 3 | . . . . . 3 Slashing Weapon . | . . . . . . Piercing Weapon . | . . . . . . Special Melee Weapon . | . . . . . . Unidentified Prototypes 2 | . . . . . 2 Parts Lost 28 | . . 3 . . 25 Power 5 | . . . . . 5 Propulsion 9 | . . 1 . . 8 Utility 6 | . . . . . 6 Weapon 8 | . . 2 . . 6 Highest Loss Streak 13 | . . 2 . . 13 To Critical Strikes . | . . . . . . Average Slot Usage (%) 83 | . 84 83 91 100 79 Engine 8 | . 14 14 14 14 3 Core 2 | . . . . . 4 Treads 4 | . . . . . 7 Leg 6 | . 28 13 . . . Wheel 11 | . . 14 28 28 9 Flight 1 | . . . . . 2 Storage 8 | . 14 14 14 14 3 Processor 7 | . . . 6 14 12 Hackware 3 | . . . . . 5 Protection 3 | . . . . . 6 Energy Gun 2 | . 4 . . . 2 Ballistic Gun 16 | . 23 26 28 26 8 Impact Weapon 6 | . . . . . 11 Naked Turns 23 | . . . . . 23 Heaviest Build 59 | 12 33 33 33 33 59 Greatest Support 42 | 20 20 32 32 32 42 Greatest Overweight (x) 5 | . 1 1 1 1 5 Average Overweight (x) . | . . . 1 1 . Largest Inventory Capacity 20 | . 15 15 15 15 20 Average Capacity 10 | . 8 15 15 15 9 Most Carried 8 | . 8 8 4 4 7 Average Carried 5 | . 7 6 4 4 4 Final Capacity 20 | 8 15 15 15 15 20 Final Carried 8 | 6 8 4 4 4 7 Class Distribution -------------------- 70% | Mutant 15% | Scavenger-Mutant 14% | Skirmisher Dominant Class ---------------- Mutant | -10/Materials Mutant | -10/Mines Mutant | -10/Exiles Mutant | -9/Mines Mutant | -8/Materials Resources | -11 -10 -10 -10 -9 -8 ----------- Run | Scr Mat Min Exi Min Mat Matter Collected 1232 | 200 310 134 . 124 464 Remotely . | . . . . . . Salvage Created 1533 | . 294 132 . 71 1036 Parts 115 | . 24 14 . 5 72 Haulers Intercepted 2 | . 1 . . . 1 Recyclers Shooed 3 | . . . . . 3 Parts Field Recycled . | . . . . . . Retrieved Matter . | . . . . . . Parts Self-Destructed . | . . . . . . Prevented . | . . . . . . Kills | -11 -10 -10 -10 -9 -8 ------- Run | Scr Mat Min Exi Min Mat Combat Hostiles Destroyed 39 | . 5 9 . 3 22 Melee 5 | . . . . . 5 Guns 26 | . 5 5 . 3 13 AOE 7 | . . 4 . . 3 Classes Destroyed 9 | . 4 1 . . 4 Worker 3 | . 1 . . . 2 Builder 1 | . . . . . 1 Hauler 2 | . 1 . . . 1 Recycler 1 | . . . . . 1 Watcher 3 | . 1 . . . 2 Swarmer 15 | . . 6 . 2 7 Grunt 18 | . 5 2 . 1 10 Sentry 3 | . . . . . 3 Specialist 2 | . . . . . 2 Best Kill Streak 7 | . 3 6 . 3 7 Combat Bots Only 7 | . 3 6 . 3 7 Max Kills in Single Turn 3 | . 1 3 . 1 3 Gunslinging 1 | . . . . . 1 Exploded 3 | . . 3 . . 3 Melee 1 | . . . . . 1 Uniques/NPCs Destroyed 1 | . . 1 . . . YI-UF0 (-10/Mines) Combat | -11 -10 -10 -10 -9 -8 -------- Run | Scr Mat Min Exi Min Mat Damage Taken 3384 | . 197 549 . 88 2550 Core 683 | . 20 75 . 31 557 Absorbed by Shields . | . . . . . . Core Remaining (%) 74 | 100 . . . 49 . Volleys Fired 102 | . 24 19 . 5 54 Largest 3 | . 2 2 . 2 3 Hottest 86 | . 60 53 . 46 86 Shots Fired 201 | . 45 34 . 10 112 Gun 195 | . 45 31 . 10 109 Cannon . | . . . . . . Launcher 6 | . . 3 . . 3 Special . | . . . . . . Kinetic 154 | . 32 31 . 10 81 Thermal 19 | . 13 . . . 6 Explosive 4 | . . 3 . . 1 Electromagnetic 24 | . . . . . 24 Robot Hit Streak 11 | . 6 9 . 6 11 Robot Miss Streak 7 | . 6 5 . 2 7 Penetration Max . | . . . . . . Secondary Targets 4 | . . . . 1 3 Max Gunslinging Chain 2 | . . . . 1 2 Shots Hit Robots 156 | . 32 18 . 8 98 Core Hits 84 | . 18 15 . 4 47 Critical Kills 1 | . . . . . 1 Critical Parts Destroyed 4 | . . 1 . . 3 Critical Strikes 6 | . . 1 . . 5 Destroy 2 | . . 1 . . 1 Corrupt 1 | . . . . . 1 Smash 3 | . . . . . 3 Melee Attacks 43 | . . . . . 43 Impact 43 | . . . . . 43 Slashing . | . . . . . . Piercing . | . . . . . . Sneak Attacks . | . . . . . . Combat Hostiles . | . . . . . . Follow-up Attacks 8 | . . . . . 8 Damage Inflicted 3257 | . 367 456 . 134 2300 Guns 1812 | . 367 275 . 134 1036 Cannons . | . . . . . . Explosions 546 | . . 181 . . 365 Melee 877 | . . . . . 877 Ramming 22 | . . . . . 22 Kinetic 1456 | . 278 275 . 134 769 Thermal 261 | . 89 . . . 172 Explosive 279 | . . 181 . . 98 Electromagnetic 362 | . . . . . 362 Impact 877 | . . . . . 877 Slashing . | . . . . . . Piercing . | . . . . . . Highest Corruption . | . . . . . . Average Corruption . | . . . . . . Corruption Purged . | . . . . . . Corruption Blocked . | . . . . . . Overload Shots . | . . . . . . Overflow Damage 73 | . . . . . 73 Projectiles . | . . . . . . Explosions . | . . . . . . Melee 73 | . . . . . 73 Knockbacks 6 | . . . . . 6 Impact 5 | . . . . . 5 Kinetic . | . . . . . . Secondary 1 | . . . . . 1 Self-Inflicted Damage 24 | . . . . . 24 Shots 1 | . . . . . 1 Rammed 2 | . . . . . 2 Targets Rammed 2 | . . . . . 2 Kicked . | . . . . . . Crushed . | . . . . . . Highest Temperature 153 | . 85 7 . 7 153 Average Temperature 40 | . 35 3 . 3 46 Received Heat Transfer 1089 | . 111 54 . 33 891 Siege Activations . | . . . . . . Robots Corrupted . | . . . . . . Combat Hostiles . | . . . . . . Parts Fried 4 | . . . . . 4 Impact Corruptions 5 | . . . . . 5 Robots Melted . | . . . . . . Combat Hostiles . | . . . . . . Parts Melted . | . . . . . . Heat Transferred 585 | . 200 . . . 385 Parts Sabotaged . | . . . . . . Parts Stolen . | . . . . . . Parts Stripped . | . . . . . . Power Chain Reactions 3 | . . . . . 3 Missiles Intercepted . | . . . . . . Alert | -11 -10 -10 -10 -9 -8 ------- Run | Scr Mat Min Exi Min Mat Peak Influence 305 | . 188 305 . 69 257 Initial 73 | . . 73 . . 26 Average 109 | . 102 95 . 12 123 Maximum Alert Level 1 | . . 1 . . 1 Low Security (%) 83 | . 100 89 . 100 75 Level 1 16 | . . 10 . . 24 Level 2 . | . . . . . . Level 3 . | . . . . . . Level 4 . | . . . . . . Level 5 . | . . . . . . High Security . | . . . . . . Max Security . | . . . . . . Squads Dispatched 10 | . 2 . . . 8 Investigation 1 | . 1 . . . . Extermination . | . . . . . . Reinforcement 9 | . 1 . . . 8 Assault . | . . . . . . Garrison . | . . . . . . Intercept . | . . . . . . Searches Triggered . | . . . . . . Construction Impeded 1 | . . . . . 1 Haulers Reinforced . | . . . . . . Active Scanning Responses . | . . . . . . Cargo Convoy Interrupts . | . . . . . . Stealth | -11 -10 -10 -10 -9 -8 --------- Run | Scr Mat Min Exi Min Mat Distress Signals 4 | . . . . . 4 Communications Jammed . | . . . . . . Distress Signals . | . . . . . . Times Spotted 58 | . 12 9 . 5 32 Peak Tracking Total 7 | . 5 4 . 5 7 Tactical Retreats 4 | . . . . . 4 Traps | -11 -10 -10 -10 -9 -8 ------- Run | Scr Mat Min Exi Min Mat Traps Triggered . | . . . . . . Indirectly . | . . . . . . Trap Hack Attempts . | . . . . . . Triggered . | . . . . . . Disarmed . | . . . . . . Reprogrammed . | . . . . . . Reused . | . . . . . . Traps Extracted . | . . . . . . Installed . | . . . . . . Triggered . | . . . . . . Machines | -11 -10 -10 -10 -9 -8 ---------- Run | Scr Mat Min Exi Min Mat Machines Disabled 1 | . . . . . 1 Max in Single Turn 1 | . . . . . 1 Machines Sabotaged . | . . . . . . Garrisons Compromised . | . . . . . . Overloaded Fab Kills . | . . . . . . Hacking | -11 -10 -10 -10 -9 -8 --------- Run | Scr Mat Min Exi Min Mat Machines Accessed 9 | . 3 . 1 . 5 Terminals 8 | . 3 . . . 5 Fabricators . | . . . . . . Repair Stations . | . . . . . . Recycling Units . | . . . . . . Scanalyzers . | . . . . . . Garrison Access . | . . . . . . Total Hacks 26 | . 9 . 1 . 16 Successful 13 | . 5 . 1 . 7 Failed 13 | . 4 . . . 9 Catastrophic . | . . . . . . Database Lockouts . | . . . . . . Manual 21 | . 9 . 1 . 11 Terminals 25 | . 9 . . . 16 Fabricators . | . . . . . . Repair Stations . | . . . . . . Recycling Units . | . . . . . . Scanalyzers . | . . . . . . Garrison Access . | . . . . . . Terminal Hacks 5 | . 1 . 1 . 3 Prototype ID Bank 1 | . . . . . 1 Terminal Index 2 | . 1 . . . 1 Maintenance Status 1 | . . . . . 1 EX-Prototype ID Bank 1 | . . . 1 . . Fabricator Hacks . | . . . . . . Repair Station Hacks . | . . . . . . Recycling Unit Hacks . | . . . . . . Scanalyzer . | . . . . . . Garrison Access Hacks . | . . . . . . Unauthorized Hacks 8 | . 4 . . . 4 Terminals 8 | . 4 . . . 4 Botnet 7 | . 3 . . . 4 Operators 1 | . 1 . . . . Fabricators . | . . . . . . Repair Stations . | . . . . . . Recycling Units . | . . . . . . Scanalyzers . | . . . . . . Garrison Access . | . . . . . . Data Cores Recovered . | . . . . . . Used . | . . . . . . Hacking Detections 8 | . 3 . . . 5 Full Trace Events 5 | . 3 . . . 2 Feedback Events . | . . . . . . Feedback Blocked . | . . . . . . Robot Schematics Acquired . | . . . . . . Robots Built . | . . . . . . Authchips . | . . . . . . Time . | . . . . . . Total Robot Build Rating . | . . . . . . Part Schematics Acquired . | . . . . . . Parts Built . | . . . . . . Authchips . | . . . . . . Time . | . . . . . . Total Part Build Rating . | . . . . . . Parts Repaired . | . . . . . . Time . | . . . . . . Parts Recycled . | . . . . . . Recycled Matter . | . . . . . . Retrieved Matter . | . . . . . . Retrieved Components . | . . . . . . Parts Scanalyzed . | . . . . . . Part Schematics Acquired . | . . . . . . Parts Damaged . | . . . . . . Bothacking | -11 -10 -10 -10 -9 -8 ------------ Run | Scr Mat Min Exi Min Mat Used RIF Installer . | . . . . . . Robots Hacked . | . . . . . . Non-combat . | . . . . . . Combat . | . . . . . . Robot Hacks Applied . | . . . . . . Relay Couplers Released . | . . . . . . Fabnet Peak Effective % . | . . . . . . Robots Rewired . | . . . . . . Allies Hacked . | . . . . . . Hacks Repelled . | . . . . . . Allies | -11 -10 -10 -10 -9 -8 -------- Run | Scr Mat Min Exi Min Mat Total Allies 3 | . . . . 3 . Largest Group 3 | . . . . 3 1 Highest-Rated Group 40 | . . . . 40 16 Highest-Rated Ally 16 | . . . . 16 16 Total Orders . | . . . . . . Ally Attacks 11 | . . . . 11 . Total Damage 132 | . . . . 132 . Kills 1 | . . . . 1 . Allies Corrupted . | . . . . . . Allies Melted . | . . . . . . Intel | -11 -10 -10 -10 -9 -8 ------- Run | Scr Mat Min Exi Min Mat Robot Analysis Total . | . . . . . . Derelict Logs Recovered 2 | . . 2 . . . Drone Launches . | . . . . . . Drone Recoveries . | . . . . . . Exploration | -11 -10 -10 -10 -9 -8 ------------- Run | Scr Mat Min Exi Min Mat Turns Passed 2386 | . 351 411 242 95 1287 Spaces Moved 1435 | 1 203 242 210 65 714 Core 45 | . . . . . 45 Treads 69 | . . . . . 69 Legs 298 | 1 203 94 . . . Wheels 925 | . . 148 210 65 502 Hover . | . . . . . . Flight 98 | . . . . . 98 Fastest Speed 37 | 120 120 100 115 115 37 Average Speed 114 | 120 126 143 115 115 100 Slowest Speed 305 | 120 190 190 115 115 305 Overloaded Moves . | . . . . . . Propulsion Burnouts . | . . . . . . Robots Hopped 1 | . . . . . 1 Cave-ins Triggered . | . . . . . . Exploration Rate (%) 40 | 2 45 58 59 17 59 Regions Visited 5 Branch Regions 3 Pre-discovered Areas 2 | . . 2 . . . Known Exits Taken . | . . . . . . Unknown Exits Taken 5 | 1 1 1 1 1 . Scrap Searched . | . . . . . . Spaces Dug 5 | . . . . . 5 Terrain Destroyed 32 | . . 14 . . 18 Melee 5 | . . . . . 5 Projectile . | . . . . . . AOE 27 | . . 14 . . 13 Terrain Rammed . | . . . . . . Walls Destroyed . | . . . . . . Machines Disabled . | . . . . . . Actions | -11 -10 -10 -10 -9 -8 --------- Run | Scr Mat Min Exi Min Mat Total 1945 | . 258 270 210 74 1133 Wait 313 | . 14 3 . 3 293 Move 1428 | . 202 241 209 64 712 Hop 1 | . . . . . 1 Pick Up 13 | . 6 . . . 7 Fast Attach 29 | . 3 . 1 . 25 Attach 7 | . . 3 . . 4 Detach . | . . . . . . Swap 6 | . 1 3 . 2 . Drop 15 | . 8 1 . . 6 Fire 102 | . 24 19 . 5 54 Melee 29 | . . . . . 29 Ram 2 | . . . . . 2 Kick . | . . . . . . Crush . | . . . . . . Escape Stasis . | . . . . . . Rewire . | . . . . . . Trap . | . . . . . . Miscellaneous . | . . . . . . Route ------- -11/Scrapyard -10/Materials (discovered 2 exits: [*Mat] / [*Min]) -10/Mines (discovered 2 exits: [*Mat] / *Exi) -10/Exiles -9/Mines -8/Materials (discovered 2 exits: [*Fac x2]) History --------- Turn | Location | Event 1 | -11/Scrapyard | Discovered new exit (range 0) 1 | -11/Scrapyard | Entered Materials 242 | -10/Materials | Discovered new exit (range 15) 294 | -10/Materials | Discovered new exit (range 13) 339 | -10/Materials | Build established: Mutant 352 | -10/Materials | Entered Mines 493 | -10/Mines | Learned location of Zion (-7) 547 | -10/Mines | Destroyed YI-UF0 620 | -10/Mines | Discovered new exit (range 6) 687 | -10/Mines | Learned location of Mines (-9) 757 | -10/Mines | Deemed a non-threat by the Exiles lab entrance 757 | -10/Mines | Discovered new exit (range 5) 763 | -10/Mines | Entered Exiles 792 | -10/Exiles | Met 8R-AWN 812 | -10/Exiles | Met EX-HEX 844 | -10/Exiles | Met EX-BIN 857 | -10/Exiles | Aligned with FarCom system 858 | -10/Exiles | Given EX-Vault access code 887 | -10/Exiles | Opened EX-Vault 896 | -10/Exiles | Found 0b10 Alert Chip 921 | -10/Exiles | Warned to stay clear of 0b10 Research branches 954 | -10/Exiles | Met EX-DEC 994 | -10/Exiles | Discovered new exit (range 10) 1005 | -10/Exiles | Left Exiles lab with 0b10 Alert Chip 1005 | -10/Exiles | Entered Mines 1034 | -9/Mines | Assisted by bots powering up and referring to "LRC-V3" 1070 | -9/Mines | Discovered new exit (range 10) 1087 | -9/Mines | Core integrity fell below 50% 1100 | -9/Mines | Entered Materials 1100 | -8/Materials | Accompanied by 1 ally 1100 | -8/Materials | Evolved 4 slots: Propulsion x1, Utility x2, Weapon x1 1444 | -8/Materials | Build established: Skirmisher 1538 | -8/Materials | Lost 13 parts (3p3n3u4w) 1726 | -8/Materials | Core integrity fell below 50% 1798 | -8/Materials | Destroyed 7 combat bots 1801 | -8/Materials | Lost 5 parts (1p2n2w) 1872 | -8/Materials | Discovered new exit (range 16) 1987 | -8/Materials | Discovered new exit (range 16) 2246 | -8/Materials | Build established: Mutant 2331 | -8/Materials | Core integrity fell below 20% 2387 | -8/Materials | Destroyed by Y-45 Defender with Beam Rifle Last Messages --------------- 02291_ Acquired Hcp. Storage Unit. 02296_ Acquired Imp. Sensor Array. 02298_ Acquired Hcp. Storage Unit. 02323_ Hrd. Medium Armor Plating destroyed. 02323_ G-47 Trooper knocked back. 02326_ Critical hit (Burn: +37). 02333_ G-47 Trooper suffers critical hit (Smash). 02333_ G-47 Trooper destroyed. 02335_ Acquired 49 matter. 02340_ G-47 Trooper destroyed. 02355_ ALERT: Suspicious intruders detected, dispatching Specialist reinforcements to area. 02369_ Wheel destroyed. 02369_ Lgt. Nuclear Core destroyed. 02378_ Lgt. Treads destroyed. 02380_ Melee Analysis Suite destroyed. 02380_ Hacking Suite destroyed. 02387_ H-61 Shepherd calls for reinforcements. 02387_ ALERT: Hostile activity reported, dispatching reinforcements to area. Map ----- +----------------------------------------------------+ | | | | | | | | | ??????????????????????????????????? | | ??????????????????????????????????? | | ??????????????????????????????????? | | ??????????????????????????????????? | | ????????######????????????????????? | | ????????# #??????###########???# | | ????????#!]! #??????# #?#? | | ????????#!!! ######## """ ""#?# | | ????????# # # """ ""#?# " | | ????????# # # """ T"#?# " | | #???????# = # # """ ""#?# " | | # ??????# # ==# """ ""#?# | | # ! ????# + %*# x #?# ! | | # ???#! # [*%# x #?# | | # ?####+######+######+######### | | # """ # | | # """ / | | # """ # % ] | | # ?###Y################## ] | | #[/ ?????# T#??????#% *] # | | #/???????#%##?????## ] # | | ?????????#@#??????# ] # | | ?????????#%#??????##% # ! | | ?????????#H#??????## / | | ?????????# #?#######% # | | ?????????# #?# #% ####+## | | ?????????# #?# # % # | | ????????? ?# # % !# " | | ????????? ?# ##+####### "T" " | | ????????? ?+ ## ###?# """ " | | ????????? ?# ?## ###???# | | ????????? ?# ?## ##????####### | | ????????? ?####???#g#?????????# | | ????????? ????????# #?????????# | | ????????? ????????# #?????????# | | ????????? ????????#w#??######## | | ????????? ????????# #??# # | | ????????#???????????# #??#! ] # | | ????????# ??????????# #??# # | | ????????# ?????????# #??# """ # | | ????????# ????????# #??# """ ### | | ???????## #???????# #??# """ #?? | | ???????# ######## ########+###? | | ???????# ! ! ## | | ???????# ! | | ???????# % * ## | +----------------------------------------------------+ Best States ------------- Heat Dissipation 31 Energy Generation 14 Energy Capacity 265 Matter Stores 300 Matter Capacity 300 Sight Range 16 Terrain Scan Density 10 Armor Coverage 225 Evasion (%) 62 Targeting Accuracy 8 Melee Accuracy 10 Recoil Reduction 2 Offensive Hacking 10 Item Schematics ----------------- None Robot Schematics ------------------ None Fabricated ------------ Nothing Alien Tech Used ----------------- None Achievements -------------- None Challenges ------------ None Game ------ Seed RecyclingTargetingCharge Manual? 0 Play Time 00:29:38 Cumulative 216.8 hours Start 2022.06.03 @ 15:41:14 End 2022.06.03 @ 16:25:18 Sessions 1 Manual Loads 0 Difficulty Rogue Special Mode None Game No. 103 Rogue 96 Adventurer 0 Explorer 7 Win Type - Total 1 Types 0/0/1/0/0/0/0/0/0 Lore% 63 Gallery% 61 Achievement% 50 Wizard Run 0 Options --------- ASCII 0 Keyboard 0 Movement Mouse Keybinds 0 Fullscreen 1 Font 16/Cog Map View 76x50 Tactical HUD 1 Map Filters NONE Filters NONE Steam 1 RUN: f97530fb-35ad-4a71-bb86-7e383378011e